[Event "*** Titled Tuesday Blitz"]
[Site "Chess.com"]
[Date "2021.02.02"]
[Round "7"]
[White "CraiggoryC"]
[Black "chesslh19"]
[Result "1/2-1/2"]
[WhiteElo "2130"]
[BlackElo "2250"]
[TimeControl "180+1"]
[EndTime "11:18:43 PST"]
[Termination "Game drawn by repetition"]

1. e4 {[%clk 0:02:44.8]} 1... e5 {[%clk 0:02:54.8]} 2. Nf3 {[%clk 0:02:44.7]}
2... Nf6 {[%clk 0:02:54.3]} 3. Nxe5 {[%clk 0:02:44]} 3... d6 {[%clk 0:02:54.4]}
4. Nf3 {[%clk 0:02:44.5]} 4... Nxe4 {[%clk 0:02:54.4]} 5. Nc3 {[%clk 0:02:45.2]}
5... Nxc3 {[%clk 0:02:54.8]} 6. dxc3 {[%clk 0:02:46.1]} 6... Be7 {[%clk
0:02:55.2]} 7. Be3 {[%clk 0:02:46.2]} 7... Nc6 {[%clk 0:02:55.6]} 8. Qd2 {[%clk
0:02:46.8]} 8... Be6 {[%clk 0:02:54.9]} 9. Nd4 {[%clk 0:02:42.8]} 9... Nxd4
{[%clk 0:02:52.6]} 10. Bxd4 {[%clk 0:02:37.5]} 10... Bf6 {[%clk 0:02:52.1]} 11.
Be2 {[%clk 0:02:31.6]} 11... Qe7 {[%clk 0:02:44.1]} 12. O-O {[%clk 0:02:29.8]}
12... O-O {[%clk 0:02:42.8]} 13. Bf3 {[%clk 0:02:25.5]} 13... Bxd4 {[%clk
0:02:23.5]} 14. cxd4 {[%clk 0:02:20.1]} 14... d5 {[%clk 0:02:19]} 15. Rfe1
{[%clk 0:02:16.6]} 15... Qd7 {[%clk 0:02:14.4]} 16. Re3 {[%clk 0:02:08.2]} 16...
Rfe8 {[%clk 0:02:04.2]} 17. Rae1 {[%clk 0:02:07.6]} 17... c6 {[%clk 0:02:01.2]}
18. g3 {[%clk 0:01:59.4]} 18... Bf5 {[%clk 0:01:29.1]} 19. R1e2 {[%clk
0:01:53.8]} 19... Re6 {[%clk 0:01:17]} 20. Rxe6 {[%clk 0:01:49.5]} 20... Bxe6
{[%clk 0:01:09.3]} 21. Qf4 {[%clk 0:01:35.4]} 21... h6 {[%clk 0:01:03.1]} 22. h4
{[%clk 0:01:32]} 22... Re8 {[%clk 0:01:02.2]} 23. h5 {[%clk 0:01:28.7]} 23... f6
{[%clk 0:00:47.9]} 24. c3 {[%clk 0:01:07.9]} 24... Bf7 {[%clk 0:00:47.4]} 25.
Rxe8+ {[%clk 0:00:51.3]} 25... Qxe8 {[%clk 0:00:38.7]} 26. Qc7 {[%clk
0:00:48.9]} 26... Bxh5 {[%clk 0:00:30.8]} 27. Bxh5 {[%clk 0:00:45.4]} 27... Qxh5
{[%clk 0:00:31.7]} 28. Qxb7 {[%clk 0:00:40.3]} 28... Qd1+ {[%clk 0:00:26.6]} 29.
Kg2 {[%clk 0:00:36.9]} 29... Qa4 {[%clk 0:00:22.3]} 30. Qc8+ {[%clk 0:00:31.2]}
30... Kh7 {[%clk 0:00:21.1]} 31. Qf5+ {[%clk 0:00:31]} 31... Kg8 {[%clk
0:00:21.3]} 32. Qc8+ {[%clk 0:00:14]} 32... Kh7 {[%clk 0:00:20.6]} 33. Qf5+
{[%clk 0:00:13.9]} 33... Kg8 {[%clk 0:00:21]} 34. Qc8+ {[%clk 0:00:14]} 1/2-1/2

[Event "*** Titled Tuesday Blitz"]
[Site "Chess.com"]
[Date "2021.02.02"]
[Round "7"]
[White "MVM2008"]
[Black "MaxLeto"]
[Result "0-1"]
[WhiteElo "2105"]
[BlackElo "2316"]
[TimeControl "180+1"]
[EndTime "11:18:43 PST"]
[Termination "MaxLeto won on time"]

1. e4 {[%clk 0:03:00.9]} 1... c6 {[%clk 0:02:59.6]} 2. d4 {[%clk 0:03:00.6]}
2... Qa5+ {[%clk 0:02:59.2]} 3. Bd2 {[%clk 0:02:52.1]} 3... Qb6 {[%clk
0:02:57.9]} 4. Nf3 {[%clk 0:02:49.8]} 4... Qxb2 {[%clk 0:02:57.5]} 5. Nc3 {[%clk
0:02:46.1]} 5... Qb6 {[%clk 0:02:58.4]} 6. Bc4 {[%clk 0:02:44.8]} 6... e6 {[%clk
0:02:57.5]} 7. e5 {[%clk 0:02:40.8]} 7... d5 {[%clk 0:02:56.5]} 8. exd6 {[%clk
0:02:36.7]} 8... Bxd6 {[%clk 0:02:56.5]} 9. Ne4 {[%clk 0:02:34.6]} 9... Be7
{[%clk 0:02:51.9]} 10. c3 {[%clk 0:02:11.8]} 10... Nf6 {[%clk 0:02:47.7]} 11.
Bd3 {[%clk 0:02:08.4]} 11... Nxe4 {[%clk 0:02:44.3]} 12. Bxe4 {[%clk 0:02:09.3]}
12... Nd7 {[%clk 0:02:45]} 13. Bd3 {[%clk 0:01:48.8]} 13... c5 {[%clk
0:02:41.5]} 14. O-O {[%clk 0:01:38.6]} 14... O-O {[%clk 0:02:41.3]} 15. Qe2
{[%clk 0:01:32.2]} 15... Nf6 {[%clk 0:02:34.5]} 16. Ne5 {[%clk 0:01:27.8]} 16...
cxd4 {[%clk 0:02:30.1]} 17. cxd4 {[%clk 0:01:28.7]} 17... Qxd4 {[%clk
0:02:29.1]} 18. Rac1 {[%clk 0:01:09.2]} 18... Bd7 {[%clk 0:01:09.4]} 19. Rfd1
{[%clk 0:00:46.4]} 19... Ba4 {[%clk 0:01:09.4]} 20. Re1 {[%clk 0:00:29.1]} 20...
Rac8 {[%clk 0:01:04.8]} 21. Rb1 {[%clk 0:00:20.4]} 21... b6 {[%clk 0:00:59]} 22.
Bg5 {[%clk 0:00:14.3]} 22... h6 {[%clk 0:00:57.5]} 23. Nf3 {[%clk 0:00:10.4]}
23... Qg4 {[%clk 0:00:49.5]} 24. Bxf6 {[%clk 0:00:10.2]} 24... Bxf6 {[%clk
0:00:50.4]} 25. h3 {[%clk 0:00:05.7]} 25... Qh5 {[%clk 0:00:50.5]} 26. Qe4
{[%clk 0:00:03.4]} 26... Rfd8 {[%clk 0:00:32.3]} 27. Qh7+ {[%clk 0:00:01.7]}
27... Kf8 {[%clk 0:00:32]} 28. Bf1 {[%clk 0:00:01.4]} 28... Bc2 {[%clk
0:00:30.7]} 29. Qh8+ {[%clk 0:00:01.1]} 29... Ke7 {[%clk 0:00:31.1]} 0-1

[Event "*** Titled Tuesday Blitz"]
[Site "Chess.com"]
[Date "2021.02.02"]
[Round "7"]
[White "bocah_sakit"]
[Black "Eltaj_Safarli"]
[Result "1/2-1/2"]
[WhiteElo "2825"]
[BlackElo "2935"]
[TimeControl "180+1"]
[EndTime "11:18:44 PST"]
[Termination "Game drawn by agreement"]

1. e4 {[%clk 0:03:00.9]} 1... e5 {[%clk 0:02:58.9]} 2. Nf3 {[%clk 0:03:01.4]}
2... Nc6 {[%clk 0:02:59]} 3. Bb5 {[%clk 0:03:02.1]} 3... a6 {[%clk 0:02:59.4]}
4. Ba4 {[%clk 0:03:02.5]} 4... d6 {[%clk 0:03:00.3]} 5. O-O {[%clk 0:02:58.3]}
5... Bd7 {[%clk 0:02:57.3]} 6. c3 {[%clk 0:02:57.3]} 6... g6 {[%clk 0:02:55.7]}
7. d4 {[%clk 0:02:57.2]} 7... Bg7 {[%clk 0:02:56]} 8. dxe5 {[%clk 0:02:52.2]}
8... Nxe5 {[%clk 0:02:54.9]} 9. Nxe5 {[%clk 0:02:52.7]} 9... dxe5 {[%clk
0:02:55.8]} 10. Bb3 {[%clk 0:02:44.9]} 10... Nf6 {[%clk 0:02:52.7]} 11. Re1
{[%clk 0:02:42.2]} 11... O-O {[%clk 0:02:52.5]} 12. h3 {[%clk 0:02:39.9]} 12...
Bc6 {[%clk 0:02:45.2]} 13. Qc2 {[%clk 0:02:37.8]} 13... Qe7 {[%clk 0:02:35.4]}
14. Bg5 {[%clk 0:02:35.6]} 14... h6 {[%clk 0:02:31.8]} 15. Bh4 {[%clk
0:02:34.1]} 15... g5 {[%clk 0:02:17.5]} 16. Bg3 {[%clk 0:02:34.1]} 16... Nh5
{[%clk 0:02:17.6]} 17. Bh2 {[%clk 0:02:32.7]} 17... Nf4 {[%clk 0:02:14]} 18. Nd2
{[%clk 0:02:26.4]} 18... Kh8 {[%clk 0:02:13.9]} 19. Rad1 {[%clk 0:02:22.5]}
19... Rad8 {[%clk 0:02:09]} 20. Nf1 {[%clk 0:02:20.6]} 20... Rxd1 {[%clk
0:01:51.9]} 21. Rxd1 {[%clk 0:02:19.2]} 21... f5 {[%clk 0:01:52.8]} 22. Ng3
{[%clk 0:02:07.9]} 22... fxe4 {[%clk 0:01:38.4]} 23. Nxe4 {[%clk 0:02:08.8]}
23... Rd8 {[%clk 0:01:37.5]} 24. Rxd8+ {[%clk 0:02:02.8]} 24... Qxd8 {[%clk
0:01:38.4]} 25. f3 {[%clk 0:01:56]} 25... Qd3 {[%clk 0:01:21.5]} 26. Bxf4 {[%clk
0:01:42.7]} 26... Qxc2 {[%clk 0:01:19.5]} 27. Bxc2 {[%clk 0:01:43.6]} 27... exf4
{[%clk 0:01:20.2]} 28. Kf2 {[%clk 0:01:40.4]} 28... Bf8 {[%clk 0:01:19]} 29. b4
{[%clk 0:01:38.4]} 29... Bg7 {[%clk 0:00:54.8]} 30. Ke2 {[%clk 0:01:31.5]} 30...
Kg8 {[%clk 0:00:47.4]} 31. Kd2 {[%clk 0:01:27]} 31... Kf8 {[%clk 0:00:34.6]} 32.
a4 {[%clk 0:01:26.9]} 32... Ke7 {[%clk 0:00:33.8]} 33. Nc5 {[%clk 0:01:23.8]}
33... Kd6 {[%clk 0:00:24.4]} 34. Be4 {[%clk 0:01:23.6]} 34... b6 {[%clk
0:00:17.4]} 35. Bxc6 {[%clk 0:01:17.7]} 35... bxc5 {[%clk 0:00:15.1]} 36. Bb7
{[%clk 0:01:15.8]} 36... cxb4 {[%clk 0:00:15.2]} 37. cxb4 {[%clk 0:01:16.7]}
37... c5 {[%clk 0:00:15.1]} 38. bxc5+ {[%clk 0:01:14.6]} 38... Kxc5 {[%clk
0:00:16]} 39. Bxa6 {[%clk 0:01:15.3]} 39... Kb4 {[%clk 0:00:15.1]} 40. Bb5
{[%clk 0:01:15.6]} 40... Bc3+ {[%clk 0:00:14.4]} 41. Kd3 {[%clk 0:01:16.5]}
41... Be1 {[%clk 0:00:09.3]} 42. Ke4 {[%clk 0:01:17.4]} 42... h5 {[%clk
0:00:09.1]} 43. Kf5 {[%clk 0:01:17]} 43... h4 {[%clk 0:00:09.5]} 44. Kxg5 {[%clk
0:01:17]} 44... Bg3 {[%clk 0:00:10.1]} 45. Kf5 {[%clk 0:01:17]} 45... Ka5 {[%clk
0:00:11]} 46. Ke4 {[%clk 0:01:17.9]} 46... Kb4 {[%clk 0:00:11.9]} 47. Kd3 {[%clk
0:01:18.5]} 47... Ka5 {[%clk 0:00:12.8]} 48. Ke2 {[%clk 0:01:18.1]} 48... Kb4
{[%clk 0:00:13.1]} 49. Kd2 {[%clk 0:01:17.6]} 49... Ka5 {[%clk 0:00:14]} 50. Kc3
{[%clk 0:01:18.5]} 50... Be1+ {[%clk 0:00:13.5]} 51. Kc4 {[%clk 0:01:19]} 51...
Bg3 {[%clk 0:00:14.4]} 52. Kc5 {[%clk 0:01:18.8]} 52... Bf2+ {[%clk 0:00:14.9]}
53. Kd5 {[%clk 0:01:19.4]} 53... Bg3 {[%clk 0:00:15.8]} 54. Ke4 {[%clk
0:01:20.2]} 54... Kb4 {[%clk 0:00:16.1]} 1/2-1/2

[Event "*** Titled Tuesday Blitz"]
[Site "Chess.com"]
[Date "2021.02.02"]
[Round "7"]
[White "Vandros57"]
[Black "Moon_stone123"]
[Result "1/2-1/2"]
[WhiteElo "2242"]
[BlackElo "2426"]
[TimeControl "180+1"]
[EndTime "11:18:47 PST"]
[Termination "Game drawn by repetition"]

1. d4 {[%clk 0:03:00.9]} 1... Nf6 {[%clk 0:02:57.8]} 2. c4 {[%clk 0:02:59.5]}
2... g6 {[%clk 0:02:58.7]} 3. Nc3 {[%clk 0:02:58.1]} 3... Bg7 {[%clk 0:02:59.6]}
4. e4 {[%clk 0:02:57.2]} 4... O-O {[%clk 0:03:00.2]} 5. Nf3 {[%clk 0:02:56.7]}
5... d6 {[%clk 0:03:00.6]} 6. Be2 {[%clk 0:02:55.9]} 6... c5 {[%clk 0:03:00.3]}
7. O-O {[%clk 0:02:54.1]} 7... a6 {[%clk 0:02:44.5]} 8. h3 {[%clk 0:02:51.7]}
8... cxd4 {[%clk 0:02:40.8]} 9. Nxd4 {[%clk 0:02:50.2]} 9... Nc6 {[%clk
0:02:41.7]} 10. Be3 {[%clk 0:02:48.6]} 10... Bd7 {[%clk 0:02:42]} 11. Rc1 {[%clk
0:02:46.5]} 11... Nxd4 {[%clk 0:02:41]} 12. Bxd4 {[%clk 0:02:44.5]} 12... Bc6
{[%clk 0:02:41.9]} 13. f3 {[%clk 0:02:34.9]} 13... Nd7 {[%clk 0:02:40.9]} 14.
Nd5 {[%clk 0:02:32.8]} 14... Bxd4+ {[%clk 0:02:37.5]} 15. Qxd4 {[%clk
0:02:31.5]} 15... Bxd5 {[%clk 0:02:37.8]} 16. cxd5 {[%clk 0:02:30.3]} 16... Rc8
{[%clk 0:02:30.5]} 17. f4 {[%clk 0:02:28]} 17... Qb6 {[%clk 0:02:28.4]} 18. Qxb6
{[%clk 0:02:25.8]} 18... Nxb6 {[%clk 0:02:29.3]} 19. Kf2 {[%clk 0:02:20.6]}
19... f5 {[%clk 0:02:25.8]} 20. Ke3 {[%clk 0:02:09.4]} 20... Rc5 {[%clk
0:02:10.4]} 21. b4 {[%clk 0:02:04.2]} 21... Rxc1 {[%clk 0:02:06.4]} 22. Rxc1
{[%clk 0:02:03]} 22... fxe4 {[%clk 0:02:04]} 23. Kxe4 {[%clk 0:01:56.2]} 23...
Rc8 {[%clk 0:02:03.6]} 24. Rxc8+ {[%clk 0:01:51.9]} 24... Nxc8 {[%clk
0:02:04.5]} 25. Bg4 {[%clk 0:01:47.5]} 25... Nb6 {[%clk 0:02:02.6]} 26. Be6+
{[%clk 0:01:47]} 26... Kg7 {[%clk 0:02:01.2]} 27. Kd4 {[%clk 0:01:46.2]} 27...
Kh6 {[%clk 0:01:53.9]} 28. g4 {[%clk 0:01:32.4]} 28... g5 {[%clk 0:01:51.7]} 29.
fxg5+ {[%clk 0:01:31.4]} 29... Kxg5 {[%clk 0:01:51.8]} 30. Bf5 {[%clk
0:01:21.2]} 30... h6 {[%clk 0:01:50.1]} 31. Bc2 {[%clk 0:01:14.1]} 31... Kf4
{[%clk 0:01:44.6]} 32. a4 {[%clk 0:01:03.4]} 32... Kg3 {[%clk 0:01:29]} 33. a5
{[%clk 0:00:59.9]} 33... Na8 {[%clk 0:01:21.4]} 34. Bf5 {[%clk 0:00:59.1]} 34...
b5 {[%clk 0:00:40.9]} 35. Bc8 {[%clk 0:00:48.2]} 35... Nc7 {[%clk 0:00:40.9]}
36. Ke4 {[%clk 0:00:45.4]} 36... Kh4 {[%clk 0:00:29.9]} 37. Kd4 {[%clk 0:00:29]}
37... Kg3 {[%clk 0:00:28]} 38. Ke4 {[%clk 0:00:27.3]} 38... Kh4 {[%clk 0:00:28]}
39. Kd4 {[%clk 0:00:27]} 39... Kg3 {[%clk 0:00:26.8]} 1/2-1/2

[Event "*** Titled Tuesday Blitz"]
[Site "Chess.com"]
[Date "2021.02.02"]
[Round "7"]
[White "GelmanAlexander"]
[Black "SantoBlue"]
[Result "0-1"]
[WhiteElo "2580"]
[BlackElo "2821"]
[TimeControl "180+1"]
[EndTime "11:18:49 PST"]
[Termination "SantoBlue won on time"]

1. d4 {[%clk 0:03:00.9]} 1... Nf6 {[%clk 0:02:59.9]} 2. Nc3 {[%clk 0:03:01.2]}
2... g6 {[%clk 0:02:58.8]} 3. e4 {[%clk 0:03:00.6]} 3... d6 {[%clk 0:02:59.7]}
4. f4 {[%clk 0:03:01]} 4... Bg7 {[%clk 0:03:00.2]} 5. Nf3 {[%clk 0:03:01.6]}
5... a6 {[%clk 0:03:00.6]} 6. e5 {[%clk 0:02:25.8]} 6... Nfd7 {[%clk 0:03:00.1]}
7. h4 {[%clk 0:02:16.6]} 7... c5 {[%clk 0:02:58.6]} 8. e6 {[%clk 0:02:10.1]}
8... fxe6 {[%clk 0:02:58.4]} 9. h5 {[%clk 0:02:10.2]} 9... Nc6 {[%clk 0:02:55]}
10. Be3 {[%clk 0:01:53.3]} 10... cxd4 {[%clk 0:02:49]} 11. Nxd4 {[%clk
0:01:53.3]} 11... Nxd4 {[%clk 0:02:49.9]} 12. Bxd4 {[%clk 0:01:53.6]} 12... e5
{[%clk 0:02:50.8]} 13. fxe5 {[%clk 0:01:52.6]} 13... Nxe5 {[%clk 0:02:51.7]} 14.
Be2 {[%clk 0:00:56.1]} 14... Be6 {[%clk 0:02:40.4]} 15. Qd2 {[%clk 0:00:51.6]}
15... Qa5 {[%clk 0:02:39.7]} 16. O-O-O {[%clk 0:00:50.3]} 16... Rc8 {[%clk
0:02:33.8]} 17. a3 {[%clk 0:00:48.3]} 17... b5 {[%clk 0:02:32.5]} 18. Kb1 {[%clk
0:00:37]} 18... b4 {[%clk 0:02:31.4]} 19. Na2 {[%clk 0:00:19.1]} 19... Bxa2+
{[%clk 0:02:17]} 20. Kxa2 {[%clk 0:00:19]} 20... Qd5+ {[%clk 0:02:17.5]} 21. b3
{[%clk 0:00:16.8]} 21... bxa3 {[%clk 0:02:14.1]} 22. hxg6 {[%clk 0:00:13.6]}
22... hxg6 {[%clk 0:02:14.3]} 23. Rxh8+ {[%clk 0:00:13.6]} 23... Bxh8 {[%clk
0:02:15.2]} 24. c4 {[%clk 0:00:09.4]} 24... Qe4 {[%clk 0:02:12.4]} 25. Bf3
{[%clk 0:00:03.6]} 25... Nxf3 {[%clk 0:02:11.2]} 26. gxf3 {[%clk 0:00:04.1]}
26... Qxd4 {[%clk 0:02:11.8]} 27. Qxd4 {[%clk 0:00:05]} 27... Bxd4 {[%clk
0:02:12.4]} 28. Rxd4 {[%clk 0:00:05.9]} 28... Rc5 {[%clk 0:02:10.6]} 29. Kxa3
{[%clk 0:00:05.9]} 29... Rf5 {[%clk 0:02:11.2]} 30. Rg4 {[%clk 0:00:06.1]} 30...
Kf8 {[%clk 0:02:10.3]} 31. f4 {[%clk 0:00:06.2]} 31... Kf7 {[%clk 0:02:10.3]}
32. Kb4 {[%clk 0:00:06.7]} 32... a5+ {[%clk 0:02:10.9]} 33. Kc3 {[%clk
0:00:06.9]} 33... Kf6 {[%clk 0:02:08]} 34. Kd4 {[%clk 0:00:07.4]} 34... a4
{[%clk 0:02:08.5]} 35. bxa4 {[%clk 0:00:07.4]} 35... Ra5 {[%clk 0:02:09]} 36.
Rg1 {[%clk 0:00:05.9]} 36... Rxa4 {[%clk 0:02:09.6]} 37. Rf1 {[%clk 0:00:05.9]}
37... Ra5 {[%clk 0:02:09.4]} 38. Ke4 {[%clk 0:00:05.7]} 38... Rc5 {[%clk
0:02:09.3]} 39. Kd4 {[%clk 0:00:06.3]} 39... Rf5 {[%clk 0:02:09.3]} 40. Rf2
{[%clk 0:00:06.6]} 40... g5 {[%clk 0:02:09.7]} 41. fxg5+ {[%clk 0:00:06.8]}
41... Kxg5 {[%clk 0:02:10.6]} 42. Re2 {[%clk 0:00:06.5]} 42... Kf6 {[%clk
0:02:11.2]} 43. Re1 {[%clk 0:00:05.9]} 43... e6 {[%clk 0:02:11.7]} 44. Re2
{[%clk 0:00:06.2]} 44... Rf4+ {[%clk 0:02:12.3]} 45. Kd3 {[%clk 0:00:06.1]}
45... Kf5 {[%clk 0:02:12.7]} 46. Re1 {[%clk 0:00:05.9]} 46... Rf3+ {[%clk
0:02:13]} 47. Kd4 {[%clk 0:00:05.9]} 47... e5+ {[%clk 0:02:13.5]} 48. Kd5 {[%clk
0:00:05.9]} 48... Rd3+ {[%clk 0:02:14.2]} 49. Kc6 {[%clk 0:00:06.1]} 49... Rd4
{[%clk 0:02:12.6]} 50. c5 {[%clk 0:00:04.7]} 50... dxc5 {[%clk 0:02:13.5]} 51.
Kxc5 {[%clk 0:00:05.6]} 51... Rd8 {[%clk 0:02:14.1]} 52. Kc4 {[%clk 0:00:05.1]}
52... e4 {[%clk 0:02:14.1]} 53. Rf1+ {[%clk 0:00:05.6]} 53... Ke5 {[%clk
0:02:14.5]} 54. Kc3 {[%clk 0:00:05]} 54... e3 {[%clk 0:02:14.4]} 55. Kc2 {[%clk
0:00:05]} 55... Ke4 {[%clk 0:02:14.8]} 56. Rf7 {[%clk 0:00:04.9]} 56... e2
{[%clk 0:02:14.2]} 57. Re7+ {[%clk 0:00:05.2]} 57... Kf3 {[%clk 0:02:14.6]} 58.
Rf7+ {[%clk 0:00:05.8]} 58... Kg2 {[%clk 0:02:15.2]} 59. Rg7+ {[%clk 0:00:06.3]}
59... Kf1 {[%clk 0:02:15.6]} 60. Rf7+ {[%clk 0:00:06.7]} 60... Kg1 {[%clk
0:02:16.1]} 61. Rg7+ {[%clk 0:00:07]} 61... Kf2 {[%clk 0:02:16.7]} 62. Rf7+
{[%clk 0:00:07.6]} 62... Ke1 {[%clk 0:02:17.3]} 63. Rf6 {[%clk 0:00:06.3]} 63...
Rd4 {[%clk 0:02:16.2]} 64. Rf7 {[%clk 0:00:02.7]} 64... Rc4+ {[%clk 0:02:13.3]}
65. Kd3 {[%clk 0:00:02.3]} 65... Rc8 {[%clk 0:02:08]} 66. Re7 {[%clk 0:00:01.9]}
66... Kd1 {[%clk 0:02:08.1]} 0-1

[Event "*** Titled Tuesday Blitz"]
[Site "Chess.com"]
[Date "2021.02.02"]
[Round "7"]
[White "ARTHURMOTIVATOR"]
[Black "ailime26"]
[Result "0-1"]
[WhiteElo "2293"]
[BlackElo "2094"]
[TimeControl "180+1"]
[EndTime "11:18:49 PST"]
[Termination "ailime26 won by resignation"]

1. e4 {[%clk 0:03:00.3]} 1... c5 {[%clk 0:02:30.7]} 2. b3 {[%clk 0:02:58]} 2...
e6 {[%clk 0:02:28.4]} 3. Bb2 {[%clk 0:02:57.4]} 3... d5 {[%clk 0:02:29]} 4. exd5
{[%clk 0:02:56.2]} 4... exd5 {[%clk 0:02:28.9]} 5. Nf3 {[%clk 0:02:56.7]} 5...
Nf6 {[%clk 0:02:28.7]} 6. Bb5+ {[%clk 0:02:56.2]} 6... Nc6 {[%clk 0:02:28.6]} 7.
Qe2+ {[%clk 0:02:57.1]} 7... Be7 {[%clk 0:02:28.4]} 8. Bxf6 {[%clk 0:02:56]}
8... gxf6 {[%clk 0:02:27.7]} 9. Nc3 {[%clk 0:02:48.4]} 9... O-O {[%clk
0:02:21.3]} 10. Bxc6 {[%clk 0:02:34.7]} 10... bxc6 {[%clk 0:02:20.8]} 11. O-O
{[%clk 0:02:31.2]} 11... Kh8 {[%clk 0:02:19.3]} 12. Kh1 {[%clk 0:02:27.8]} 12...
Rg8 {[%clk 0:02:08.5]} 13. Rae1 {[%clk 0:02:25]} 13... Bd6 {[%clk 0:02:06.8]}
14. Qd3 {[%clk 0:02:22]} 14... f5 {[%clk 0:02:04.3]} 15. Ne5 {[%clk 0:02:18.9]}
15... Qf6 {[%clk 0:02:02.4]} 16. f4 {[%clk 0:02:14.9]} 16... Bb7 {[%clk
0:01:55.1]} 17. Ne2 {[%clk 0:01:35.6]} 17... Bxe5 {[%clk 0:01:49.6]} 18. fxe5
{[%clk 0:01:33.5]} 18... Qxe5 {[%clk 0:01:50.5]} 19. Ng3 {[%clk 0:01:31.5]}
19... Qg7 {[%clk 0:01:41.2]} 20. Qxf5 {[%clk 0:01:29.5]} 20... Raf8 {[%clk
0:01:28.1]} 21. Re7 {[%clk 0:01:25.9]} 21... Bc8 {[%clk 0:01:27.4]} 22. Qf2
{[%clk 0:01:03.5]} 22... Be6 {[%clk 0:01:22.4]} 23. Rxa7 {[%clk 0:00:59.2]}
23... d4 {[%clk 0:01:16.2]} 24. a4 {[%clk 0:00:47.3]} 24... Bd5 {[%clk
0:01:16.2]} 25. Qf6 {[%clk 0:00:46.4]} 25... Re8 {[%clk 0:01:08.2]} 26. Qxg7+
{[%clk 0:00:43]} 26... Rxg7 {[%clk 0:01:09.1]} 27. a5 {[%clk 0:00:41.7]} 27...
h5 {[%clk 0:01:06.9]} 28. Rf2 {[%clk 0:00:19.1]} 28... Re1+ {[%clk 0:00:53.2]}
29. Nf1 {[%clk 0:00:18.9]} 29... Rxg2 {[%clk 0:00:42.6]} 30. Rf5 {[%clk
0:00:05.7]} 30... Rg5+ {[%clk 0:00:32.9]} 0-1

[Event "*** Titled Tuesday Blitz"]
[Site "Chess.com"]
[Date "2021.02.02"]
[Round "7"]
[White "Sjakkerntobi"]
[Black "BL4D3RUNN3R"]
[Result "0-1"]
[WhiteElo "2302"]
[BlackElo "2216"]
[TimeControl "180+1"]
[EndTime "11:18:53 PST"]
[Termination "BL4D3RUNN3R won by resignation"]

1. d4 {[%clk 0:03:00.9]} 1... Nf6 {[%clk 0:02:54.9]} 2. c4 {[%clk 0:02:58.7]}
2... g6 {[%clk 0:02:54.8]} 3. Nc3 {[%clk 0:02:58.2]} 3... Bg7 {[%clk 0:02:54.8]}
4. e4 {[%clk 0:02:58.7]} 4... d6 {[%clk 0:02:54.9]} 5. Be3 {[%clk 0:02:56.4]}
5... O-O {[%clk 0:02:54]} 6. Be2 {[%clk 0:02:56.4]} 6... e5 {[%clk 0:02:52.9]}
7. d5 {[%clk 0:02:52.1]} 7... Na6 {[%clk 0:02:42.6]} 8. h4 {[%clk 0:02:48.8]}
8... h5 {[%clk 0:02:39.1]} 9. f3 {[%clk 0:02:48.6]} 9... c6 {[%clk 0:02:33]} 10.
Qd3 {[%clk 0:02:48.4]} 10... cxd5 {[%clk 0:02:27.9]} 11. cxd5 {[%clk 0:02:49.3]}
11... Nc5 {[%clk 0:02:21.7]} 12. Qd2 {[%clk 0:02:49.1]} 12... a5 {[%clk
0:02:17.7]} 13. Bh6 {[%clk 0:02:42.2]} 13... a4 {[%clk 0:02:06.2]} 14. g4 {[%clk
0:02:20.9]} 14... hxg4 {[%clk 0:02:02.6]} 15. h5 {[%clk 0:02:16.4]} 15... gxf3
{[%clk 0:01:57.8]} 16. Bxf3 {[%clk 0:02:14.1]} 16... Ng4 {[%clk 0:01:38.1]} 17.
Bxg7 {[%clk 0:02:03]} 17... Kxg7 {[%clk 0:01:35.4]} 18. hxg6 {[%clk 0:02:02.4]}
18... Rh8 {[%clk 0:01:28.9]} 19. O-O-O {[%clk 0:02:03.3]} 19... Rxh1 {[%clk
0:01:21.8]} 20. Bxh1 {[%clk 0:02:04.2]} 20... fxg6 {[%clk 0:01:18.4]} 21. Nh3
{[%clk 0:01:59.7]} 21... a3 {[%clk 0:01:14.9]} 22. b4 {[%clk 0:01:59]} 22... Na4
{[%clk 0:01:13.9]} 23. Rg1 {[%clk 0:01:50]} 23... Qb6 {[%clk 0:01:06.9]} 24. Bf3
{[%clk 0:01:20.5]} 24... Nxc3 {[%clk 0:00:49]} 25. Qxc3 {[%clk 0:01:21.4]} 25...
Bd7 {[%clk 0:00:45.3]} 26. Bxg4 {[%clk 0:01:16.5]} 26... Rc8 {[%clk 0:00:42.3]}
27. Qxc8 {[%clk 0:01:16.3]} 27... Bxc8 {[%clk 0:00:41.6]} 28. Bxc8 {[%clk
0:01:17.2]} 28... Qc7+ {[%clk 0:00:40.9]} 29. Kd2 {[%clk 0:01:09.7]} 29... Qxc8
{[%clk 0:00:40.3]} 30. Ng5 {[%clk 0:01:10.3]} 30... Qc4 {[%clk 0:00:36]} 31.
Ne6+ {[%clk 0:01:07.6]} 31... Kf6 {[%clk 0:00:32.7]} 32. Ke3 {[%clk 0:00:55.5]}
32... Qxb4 {[%clk 0:00:26.7]} 33. Rf1+ {[%clk 0:00:55.2]} 33... Ke7 {[%clk
0:00:24.6]} 34. Rf2 {[%clk 0:00:54.2]} 34... Qc3+ {[%clk 0:00:19]} 35. Ke2
{[%clk 0:00:53.5]} 35... Qc4+ {[%clk 0:00:16.1]} 36. Ke3 {[%clk 0:00:52.8]}
36... b5 {[%clk 0:00:14.9]} 37. Rd2 {[%clk 0:00:41]} 37... b4 {[%clk 0:00:14.3]}
38. Rd3 {[%clk 0:00:40.2]} 38... Qc1+ {[%clk 0:00:13.3]} 39. Rd2 {[%clk
0:00:39.8]} 39... b3 {[%clk 0:00:12]} 0-1